bitfinex/quotes_BTCUSD_20250123
["timestamp","ask_amount","ask_price","bid_price","bid_amount"]
[1737674620107,0.11874,104450.0,104440.0,0.15]
[1737674620353,0.21608729,104450.0,104440.0,0.15015066]
[1737674620572,0.21608729,104450.0,104440.0,0.00015066]
[1737674620771,0.12034729,104450.0,104440.0,0.15015066]
[1737674621060,0.32153348,104450.0,104440.0,0.00015066]
[1737674621262,0.44063348,104450.0,104440.0,0.00015066]
[1737674621470,0.55358067,104450.0,104440.0,0.00015066]
[1737674621883,0.61106067,104450.0,104440.0,0.00015066]
[1737674622301,0.61106067,104450.0,104420.0,0.01]
[1737674622302,0.39965138,104430.0,104420.0,0.01]
[1737674622502,0.57449867,104430.0,104420.0,0.01005033]
[1737674623136,0.50449867,104430.0,104420.0,0.01005033]
[1737674623411,0.60697867,104430.0,104420.0,0.01005033]
[1737674623929,0.61197867,104430.0,104420.0,0.01005033]
[1737674624423,0.66197867,104430.0,104420.0,0.01005033]
[1737674624679,0.71832596,104430.0,104420.0,0.01005033]
[1737674625167,0.71832596,104430.0,104420.0,3.3e-07]
[1737674625168,0.66084596,104430.0,104420.0,3.3e-07]
[1737674625351,0.84684596,104430.0,104420.0,3.3e-07]
[1737674625483,0.86184596,104430.0,104420.0,3.3e-07]
[1737674625721,0.85284596,104430.0,104420.0,3.3e-07]
[1737674625978,0.74949867,104430.0,104420.0,3.3e-07]
[1737674626209,0.7588428,104430.0,104420.0,3.3e-07]
[1737674626478,0.7678428,104430.0,104420.0,3.3e-07]
[1737674627161,0.7768428,104430.0,104420.0,3.3e-07]
[1737674627629,0.6580858,104430.0,104410.0,0.00010263]
[1737674627859,0.34856148,104420.0,104410.0,0.00025211]
[1737674628066,0.29856148,104420.0,104410.0,0.00607714]
[1737674628265,0.29856148,104420.0,104410.0,0.00073646]
[1737674628893,0.31753212,104420.0,104410.0,0.00073646]
[1737674629296,0.36753212,104420.0,104410.0,0.00073646]
[1737674629566,0.41753212,104420.0,104410.0,0.00073646]
[1737674630421,0.42653212,104420.0,104410.0,0.00073646]
[1737674630641,0.40653212,104420.0,104410.0,0.00653736]
[1737674631016,0.50387941,104420.0,104410.0,0.00025211]
[1737674631695,0.50387941,104420.0,104410.0,0.00071867]
[1737674631935,0.50387941,104420.0,104410.0,0.00025211]
[1737674632135,0.50387941,104420.0,104410.0,0.00071867]
[1737674632136,0.42653212,104420.0,104410.0,0.00071867]
[1737674632345,0.42653212,104420.0,104410.0,0.00025211]
[1737674632570,0.38353212,104420.0,104410.0,0.00025211]
[1737674632868,0.33353212,104420.0,104410.0,0.00073233]
[1737674633129,0.38353212,104420.0,104410.0,0.00025211]
[1737674633369,0.38353212,104420.0,104410.0,0.00073646]
[1737674633634,0.38353212,104420.0,104410.0,0.00025211]
[1737674634099,0.38353212,104420.0,104410.0,0.00073646]
[1737674634298,0.38353212,104420.0,104410.0,0.00608443]
[1737674634540,0.38353212,104420.0,104410.0,0.00025211]
[1737674635017,0.33353212,104420.0,104410.0,0.00025211]
[1737674635246,0.31456148,104420.0,104410.0,0.00073646]
[1737674635483,0.31456148,104420.0,104410.0,0.00025211]
[1737674635729,0.36456148,104420.0,104410.0,0.00025211]
[1737674635958,0.50241094,104420.0,104410.0,0.00025211]
[1737674636177,0.50241094,104420.0,104410.0,0.00071821]
[1737674636416,0.40756148,104420.0,104410.0,0.00025211]
[1737674636893,0.40756148,104420.0,104410.0,0.00071821]
[1737674637094,0.40756148,104420.0,104410.0,0.00025211]
[1737674637214,0.40756148,104420.0,104410.0,0.00071821]
[1737674637424,0.57990877,104420.0,104410.0,0.00025211]
[1737674637624,0.57990877,104420.0,104410.0,0.00071821]
[1737674637808,0.57990877,104420.0,104410.0,0.00025211]
[1737674638010,0.48256148,104420.0,104410.0,0.00025211]
[1737674638681,0.56800867,104420.0,104410.0,0.00025211]
[1737674638899,0.32967038,104410.0,104400.0,0.00021668]
[1737674639114,0.55541767,104410.0,104400.0,0.00036624]
[1737674639339,2.05541767,104410.0,104400.0,0.00083509]
[1737674639559,2.05541767,104410.0,104380.0,0.00029841]
[1737674639560,0.264794,104390.0,104380.0,0.00029841]
[1737674639766,0.44758848,104390.0,104380.0,0.00044799]
[1737674639979,0.50303567,104390.0,104380.0,0.00044799]
[1737674640447,0.52303567,104390.0,104380.0,0.00044799]
[1737674640612,0.41758848,104390.0,104380.0,0.00044799]
[1737674640839,1.91758848,104390.0,104380.0,0.00044799]
[1737674641056,1.92658848,104390.0,104380.0,0.00044799]
[1737674641709,1.92658848,104390.0,104380.0,0.00674303]
[1737674641916,1.93558848,104390.0,104380.0,0.00674303]
[1737674642117,1.91558848,104390.0,104380.0,0.00674303]
[1737674642324,1.95193097,104390.0,104380.0,0.00674303]
[1737674642524,1.91558848,104390.0,104380.0,0.00044799]
[1737674642746,1.91558848,104390.0,104380.0,0.0067608]
[1737674642947,1.91558848,104390.0,104380.0,0.00716907]
[1737674643369,1.93514756,104390.0,104380.0,0.00716907]
[1737674644241,2.15514756,104390.0,104380.0,0.00716907]
[1737674644464,0.65514756,104390.0,104380.0,0.00716907]
[1737674644667,0.66450177,104390.0,104380.0,0.00716907]
[1737674645088,0.56850177,104390.0,104380.0,0.00716907]
[1737674645307,0.34550177,104390.0,104380.0,0.00085626]
[1737674645522,0.39550177,104390.0,104380.0,0.00085626]
[1737674645740,0.34550177,104390.0,104380.0,0.00085626]
[1737674645945,0.39550177,104390.0,104380.0,0.00085626]
[1737674646155,0.34550177,104390.0,104380.0,0.00085626]
[1737674646353,0.38850177,104390.0,104380.0,0.00085626]
[1737674646571,0.36850177,104390.0,104380.0,0.00465111]
[1737674646779,0.36850177,104390.0,104380.0,0.00085626]
[1737674646986,0.38850177,104390.0,104380.0,0.00085626]
[1737674648106,0.43850177,104390.0,104380.0,0.00465366]
[1737674648505,0.32594269,104390.0,104380.0,0.00465366]
[1737674648708,0.32594269,104390.0,104380.0,0.00237626]
[1737674648885,0.31658848,104390.0,104380.0,0.00237626]
[1737674650892,0.31658848,104390.0,104380.0,0.00825193]
[1737674651755,0.22079448,104390.0,104380.0,0.08615193]
[1737674651950,0.11534729,104390.0,104380.0,0.22605978]
[1737674652155,0.10634729,104390.0,104380.0,0.22018411]
[1737674652331,0.09734729,104390.0,104380.0,0.23346465]
[1737674652753,0.20214129,104390.0,104380.0,0.0935568]
[1737674652919,0.30758848,104390.0,104380.0,0.0935568]
[1737674653119,0.10634729,104390.0,104380.0,0.1893598]
[1737674653403,0.21179448,104390.0,104380.0,0.17607926]
[1737674653522,0.11434729,104390.0,104380.0,0.17607926]
[1737674654000,0.11434729,104390.0,104380.0,0.26617119]
[1737674654203,0.09734729,104390.0,104380.0,0.26617119]
[1737674654382,0.10234729,104390.0,104380.0,0.26617119]
[1737674654526,0.11134729,104390.0,104380.0,0.26617119]
[1737674654741,0.11134729,104390.0,104380.0,0.17607926]
[1737674655579,0.11134729,104390.0,104380.0,0.18940052]
[1737674657266,0.11134729,104390.0,104380.0,0.17607926]
[1737674662715,0.11134729,104390.0,104380.0,0.18939205]
[1737674663406,0.33558848,104390.0,104380.0,0.01568905]
[1737674663629,0.43293577,104390.0,104380.0,0.01568905]
[1737674664044,0.45293577,104390.0,104380.0,0.00237626]
[1737674664246,0.61588296,104390.0,104380.0,0.00827141]
[1737674664452,0.51043577,104390.0,104380.0,0.00237626]
[1737674664683,0.49643577,104390.0,104380.0,0.00237626]
[1737674664910,0.41908848,104390.0,104380.0,0.00826784]
[1737674665118,0.45808848,104390.0,104380.0,0.00237626]
[1737674665322,0.40808848,104390.0,104380.0,0.00237626]
[1737674665542,0.33058848,104390.0,104380.0,0.00237626]
[1737674666209,0.32643388,104390.0,104380.0,0.00237626]
[1737674666641,0.33243388,104390.0,104380.0,0.00237626]
[1737674667649,0.47978117,104390.0,104380.0,0.00237626]
[1737674667893,0.38243388,104390.0,104380.0,0.00237626]
[1737674668666,0.38243388,104390.0,104380.0,0.00826784]
[1737674669129,0.38243388,104390.0,104380.0,0.00237626]
[1737674670362,0.3916474,104390.0,104380.0,0.00237626]
[1737674670899,0.3416474,104390.0,104380.0,0.00237626]
[1737674671114,0.33243388,104390.0,104380.0,0.00237626]
[1737674671317,0.11234729,104390.0,104380.0,0.23297626]
[1737674671738,0.20814129,104390.0,104380.0,0.23297626]
[1737674672310,0.31358848,104390.0,104380.0,0.23297626]
[1737674672513,0.31358848,104390.0,104380.0,0.15237626]
[1737674673975,0.20814129,104390.0,104380.0,0.15237626]
[1737674674194,0.11234729,104390.0,104380.0,0.31950019]
[1737674675277,0.11234729,104390.0,104380.0,0.24817926]
[1737674675590,0.11234729,104390.0,104380.0,0.15237626]
[1737674675796,0.11234729,104390.0,104380.0,0.24817926]
[1737674676693,0.11234729,104390.0,104380.0,0.29567926]
[1737674677415,0.10334729,104390.0,104380.0,0.29567926]
[1737674677913,0.11234729,104390.0,104380.0,0.39302655]
[1737674678154,0.11234729,104390.0,104380.0,0.42302655]
[1737674678392,0.10634729,104390.0,104380.0,0.42302655]
[1737674678680,0.11134729,104390.0,104380.0,0.42302655]
[1737674679892,0.014,104390.0,104380.0,0.50362655]
[1737674681059,0.005,104390.0,104380.0,0.50362655]
[1737674681308,0.003,104390.0,104380.0,0.50362655]
[1737674681832,0.005,104390.0,104380.0,0.65075628]
[1737674682353,0.003,104390.0,104380.0,0.55340899]
[1737674682847,0.003,104390.0,104380.0,0.55540899]
[1737674683070,0.00029925,104400.0,104390.0,0.245794]
[1737674683305,0.00029925,104400.0,104390.0,0.323894]
[1737674684287,0.00029925,104400.0,104390.0,0.44124129]
[1737674684495,0.00329925,104400.0,104390.0,0.58768858]
[1737674684700,0.00329925,104400.0,104390.0,0.56768858]
[1737674684912,0.00329925,104400.0,104390.0,0.58768858]
[1737674685130,0.00329925,104400.0,104390.0,0.61743615]
[1737674685375,0.00529925,104400.0,104390.0,0.61743615]
[1737674685612,0.00529925,104400.0,104390.0,0.59743615]
[1737674685834,0.00529925,104400.0,104390.0,0.47034129]
[1737674686313,0.00029925,104400.0,104390.0,0.47034129]
[1737674686546,0.00129925,104400.0,104390.0,0.47234129]
[1737674686751,0.00129925,104400.0,104390.0,0.48155865]
[1737674687196,0.00129925,104400.0,104390.0,0.374994]
[1737674687409,0.00129925,104400.0,104390.0,0.002]
[1737674687411,0.20409373,104400.0,104390.0,0.002]
[1737674687622,0.09864654,104400.0,104390.0,0.152]
[1737674688046,0.09864654,104400.0,104390.0,0.15]
[1737674688398,0.10064654,104400.0,104390.0,0.15]
[1737674688608,0.10064654,104400.0,104390.0,0.31025741]
[1737674688810,0.00329925,104400.0,104390.0,0.31025741]
[1737674689015,0.00229925,104400.0,104390.0,0.31025741]
[1737674689204,0.00229925,104400.0,104390.0,0.32352927]
[1737674689406,0.00529925,104400.0,104390.0,0.32352927]
[1737674691710,0.00529925,104400.0,104390.0,0.25906586]
[1737674691887,0.00529925,104400.0,104390.0,0.245794]
[1737674693557,0.00529925,104400.0,104390.0,0.25538315]
[1737674697951,0.00529925,104400.0,104390.0,0.28538315]
[1737674698157,0.00529925,104400.0,104390.0,0.36728315]
[1737674698338,0.00529925,104400.0,104390.0,0.46463044]
[1737674699002,0.00329925,104400.0,104390.0,0.46463044]
[1737674699635,0.00029925,104400.0,104390.0,0.46463044]
[1737674699842,0.00029925,104400.0,104390.0,0.46477274]
[1737674700000,0.00129925,104400.0,104390.0,0.46477274]
[1737674700389,0.00129925,104400.0,104390.0,0.48006937]
[1737674700594,0.00129925,104400.0,104390.0,0.39816937]
[1737674701765,0.00129925,104400.0,104390.0,0.30082208]
[1737674701969,0.10674644,104400.0,104390.0,0.29123293]
[1737674702677,0.20409373,104400.0,104390.0,0.29123293]
[1737674703477,0.20409373,104400.0,104390.0,0.28923293]
[1737674703892,0.20509373,104400.0,104390.0,0.28923293]
[1737674704295,0.20409373,104400.0,104390.0,0.2759363]
[1737674704733,0.20609373,104400.0,104390.0,0.36218819]
[1737674704948,0.00229925,104400.0,104390.0,0.36218819]
[1737674705176,0.00529925,104400.0,104390.0,0.36218819]
[1737674706013,0.00229925,104400.0,104390.0,0.36218819]
[1737674706224,0.00329925,104400.0,104390.0,0.36218819]
[1737674706429,0.00129925,104400.0,104390.0,0.36218819]
[1737674706643,0.00129925,104400.0,104390.0,0.2759363]
[1737674706847,0.00229925,104400.0,104390.0,0.2759363]
[1737674707270,0.00129925,104400.0,104390.0,0.2759363]
[1737674707692,0.00129925,104400.0,104390.0,0.2779363]
[1737674708118,0.53112592,104400.0,104390.0,0.0321423]
[1737674708335,0.70055021,104400.0,104390.0,0.0021423]
[1737674708554,0.60412592,104400.0,104390.0,0.0021423]
[1737674709027,0.60312592,104400.0,104390.0,0.0021423]
[1737674709264,0.55312592,104400.0,104390.0,0.0021423]
[1737674709508,0.5824232,104400.0,104390.0,0.0021423]
[1737674709739,0.67977049,104400.0,104390.0,0.0001423]
[1737674709985,0.5714232,104400.0,104390.0,0.0001423]
[1737674710241,0.5724232,104400.0,104390.0,0.0001423]
[1737674710684,0.5914232,104400.0,104390.0,0.0001423]
[1737674710896,2.0914232,104400.0,104390.0,0.0001423]
[1737674711107,2.0984232,104400.0,104390.0,0.0001423]
[1737674711716,2.0894232,104400.0,104390.0,0.0001423]
[1737674711948,2.10877805,104400.0,104390.0,0.0001423]
[1737674712172,2.11777805,104400.0,104390.0,0.0001423]
[1737674713060,2.09777805,104400.0,104390.0,0.0001423]
[1737674713582,0.59777805,104400.0,104390.0,0.0001423]
[1737674713799,0.61777805,104400.0,104390.0,0.0001423]
[1737674714007,0.61781805,104400.0,104390.0,0.0001423]
[1737674717063,0.59781805,104400.0,104390.0,0.0001423]
[1737674717263,0.64781805,104400.0,104390.0,0.0001423]
[1737674717914,0.59781805,104400.0,104390.0,0.0001423]
[1737674718592,0.64781805,104400.0,104390.0,0.0001423]
[1737674718826,0.59781805,104400.0,104390.0,0.0001423]
[1737674719849,0.49237086,104400.0,104390.0,0.0001423]
[1737674720360,0.59781805,104400.0,104390.0,0.0001423]
[1737674720561,0.64781805,104400.0,104390.0,0.0001423]
[1737674720788,0.59781805,104400.0,104390.0,0.0001423]
[1737674720983,0.64781805,104400.0,104390.0,0.0001423]
[1737674721160,0.59781805,104400.0,104390.0,0.0001423]
[1737674721383,0.64781805,104400.0,104390.0,0.0001423]
[1737674723239,0.59781805,104400.0,104390.0,0.0001423]
[1737674728251,2.09781805,104400.0,104390.0,0.0001423]
[1737674728411,2.14781805,104400.0,104390.0,0.0001423]
[1737674729635,0.221603,104380.0,104370.0,0.02]
[1737674729852,0.095831,104350.0,104340.0,0.00029841]
[1737674730073,0.29862548,104350.0,104340.0,0.00034876]
[1737674730287,0.29862548,104350.0,104340.0,0.15668642]
[1737674730931,0.29862548,104350.0,104340.0,0.00668642]
[1737674731148,0.20279448,104350.0,104340.0,0.10252642]
[1737674731356,0.09734729,104350.0,104340.0,0.17823495]
[1737674731561,0.09834729,104350.0,104340.0,0.17823495]
[1737674731772,0.09834729,104350.0,104340.0,0.32823495]
[1737674732214,0.20379448,104350.0,104340.0,0.32823495]
[1737674732447,0.29962548,104350.0,104340.0,0.25252642]
[1737674732648,0.20379448,104350.0,104340.0,0.25252642]
[1737674732872,0.09834729,104350.0,104340.0,0.25252642]
[1737674734521,0.09734729,104350.0,104340.0,0.25252642]
[1737674734737,0.10034729,104350.0,104340.0,0.25252642]
[1737674735132,0.20579448,104350.0,104340.0,0.25252642]
[1737674735345,0.10034729,104350.0,104340.0,0.25252642]
[1737674736217,0.10134729,104350.0,104340.0,0.25252642]
[1737674736412,0.004,104350.0,104340.0,0.25252642]
[1737674737459,0.001,104350.0,104340.0,0.25252642]
[1737674737669,0.001,104350.0,104340.0,0.34987371]
[1737674737849,0.001,104350.0,104340.0,0.58061205]
[1737674738194,0.001,104350.0,104340.0,0.65651205]
[1737674740466,0.20379448,104350.0,104340.0,0.1024916]
[1737674740913,0.20379448,104350.0,104340.0,0.2524916]
[1737674741122,0.09834729,104350.0,104340.0,0.2524916]
[1737674741546,0.09734729,104350.0,104340.0,0.2524916]
[1737674741750,0.09834729,104350.0,104340.0,0.2524916]
[1737674741905,0.20379448,104350.0,104340.0,0.2524916]
[1737674742314,0.20679448,104350.0,104340.0,0.2524916]
[1737674743191,0.10134729,104350.0,104340.0,0.2524916]
[1737674743542,0.10134729,104350.0,104340.0,0.24618876]
[1737674743744,0.10134729,104350.0,104340.0,0.25248372]
[1737674744437,0.10134729,104350.0,104340.0,0.24618876]
[1737674744990,0.10134729,104350.0,104340.0,0.25247863]
[1737674745202,0.10134729,104350.0,104340.0,0.34279208]
[1737674747272,0.10134729,104350.0,104340.0,0.34269208]
[1737674747473,0.10124729,104350.0,104340.0,0.35600377]
[1737674747953,0.10024729,104350.0,104340.0,0.35600377]
[1737674748154,0.09724729,104350.0,104340.0,0.35600377]
[1737674748595,0.09824729,104350.0,104340.0,0.35600377]
[1737674748811,0.09824729,104350.0,104340.0,0.34269208]
[1737674750232,0.09724729,104350.0,104340.0,0.34269208]
[1737674750442,0.09724729,104350.0,104340.0,0.25237863]
[1737674750670,0.30152548,104350.0,104340.0,0.15653863]
[1737674750878,0.42862548,104350.0,104340.0,0.15653863]
[1737674751088,0.42962548,104350.0,104340.0,0.15653863]
[1737674751714,0.42862548,104350.0,104340.0,0.15653863]
[1737674751925,0.42562548,104350.0,104340.0,0.15653863]
[1737674752127,0.44062548,104350.0,104340.0,0.15653863]
[1737674754701,0.48362548,104350.0,104340.0,0.00653863]
[1737674754912,0.63907267,104350.0,104340.0,0.00653863]
[1737674755123,0.53362548,104350.0,104340.0,0.00444883]
[1737674755384,0.54290578,104350.0,104340.0,0.00444883]
[1737674756036,0.66726947,104350.0,104340.0,0.00444883]
[1737674756247,0.64726947,104350.0,104340.0,0.00444883]
[1737674756458,0.56182228,104350.0,104340.0,0.00444883]
[1737674757073,0.56182228,104350.0,104340.0,0.00652831]
[1737674757281,0.56182228,104350.0,104340.0,0.00024876]
[1737674757486,0.59816477,104350.0,104340.0,0.00057973]
[1737674757687,0.59816477,104350.0,104340.0,0.00024876]
[1737674758124,0.63361196,104350.0,104340.0,0.00024876]
[1737674758343,0.633911,104350.0,104340.0,0.00062143]
[1737674759613,2.133911,104350.0,104340.0,0.00062143]
[1737674759799,2.124911,104350.0,104340.0,0.00062143]
[1737674760005,2.118911,104350.0,104340.0,0.00062143]
[1737674760209,2.127911,104350.0,104340.0,0.00062143]
[1737674760424,2.134911,104350.0,104340.0,0.00062143]
[1737674760836,2.00612132,104350.0,104340.0,0.00062143]
[1737674761049,0.56312132,104350.0,104340.0,0.00062143]
[1737674761249,0.47012132,104350.0,104340.0,0.00062143]
[1737674761454,0.30609383,104350.0,104340.0,0.00062143]
[1737674761672,0.22829383,104350.0,104340.0,0.00062143]
[1737674761873,0.33374102,104350.0,104340.0,0.00062143]
[1737674762838,0.32474102,104350.0,104340.0,0.00062143]
[1737674762960,0.31774102,104350.0,104340.0,0.00024876]
[1737674763170,0.32674102,104350.0,104340.0,0.00024876]
[1737674763439,0.33274102,104350.0,104340.0,0.00024876]
[1737674763650,0.52440502,104350.0,104330.0,0.28245759]
[1737674763857,0.31382452,104350.0,104330.0,0.329924]
[1737674764084,0.20837733,104350.0,104330.0,0.60840583]
[1737674764288,0.20837733,104350.0,104340.0,0.03]
[1737674764532,0.09754633,104350.0,104340.0,0.12584]
[1737674764936,0.11354633,104350.0,104340.0,0.12584]
[1737674765098,0.11354633,104350.0,104340.0,0.20935732]
[1737674765781,0.11354633,104350.0,104340.0,0.21532048]
[1737674766103,0.10454633,104350.0,104340.0,0.21532048]
[1737674766326,0.09754633,104350.0,104340.0,0.21532048]
[1737674766547,0.11254633,104350.0,104340.0,0.21565989]
[1737674766756,0.01529904,104350.0,104340.0,0.36565989]
[1737674766967,0.01529904,104350.0,104340.0,0.35935732]
[1737674767411,0.01482469,104350.0,104340.0,0.35935732]
[1737674767621,0.12465716,104370.0,104340.0,0.26351732]
[1737674767853,0.22046916,104370.0,104360.0,0.15]
[1737674768070,0.22046916,104370.0,104360.0,0.1937473]
[1737674769229,0.12465716,104370.0,104360.0,0.1937473]
[1737674769438,0.01920997,104370.0,104360.0,0.2895693]
[1737674769614,0.02720997,104370.0,104360.0,0.2895693]
[1737674770064,0.10664633,104370.0,104360.0,0.2895693]
[1737674770244,0.10618445,104370.0,104360.0,0.2895693]
[1737674770455,0.10481496,104370.0,104360.0,0.2895693]
[1737674770874,0.10581496,104370.0,104360.0,0.2895693]
[1737674771082,0.11281496,104370.0,104360.0,0.2895693]
[1737674772576,0.21826215,104370.0,104360.0,0.15]
[1737674772754,0.11281496,104370.0,104360.0,0.245822]
[1737674775076,0.11281496,104370.0,104360.0,0.15]
[1737674775287,0.11281496,104370.0,104360.0,0.245822]
[1737674775635,0.11139605,104370.0,104360.0,0.245822]
[1737674775864,0.11139605,104370.0,104360.0,0.18526939]
[1737674777368,0.11092965,104370.0,104360.0,0.18526939]
[1737674777563,0.10737264,104370.0,104360.0,0.18526939]
[1737674783072,0.10737264,104370.0,104360.0,0.18541179]
[1737674783210,0.10767168,104370.0,104360.0,0.18541179]
[1737674783385,0.10767168,104370.0,104360.0,0.0001424]
[1737674783594,0.38933087,104370.0,104360.0,0.0001424]
[1737674784687,0.30893087,104370.0,104360.0,0.0001424]
[1737674784949,0.10767168,104370.0,104360.0,0.0959644]
[1737674786553,0.09167168,104370.0,104360.0,0.0959644]
[1737674786755,0.09167168,104370.0,104360.0,0.18589734]
[1737674786990,0.10667168,104370.0,104360.0,0.18589734]
[1737674787648,0.30793087,104370.0,104360.0,0.0001424]
[1737674787828,0.38663087,104370.0,104360.0,0.0001424]
[1737674789249,0.38663087,104370.0,104360.0,0.00045832]
[1737674789407,0.38663087,104370.0,104360.0,0.00448456]
[1737674791156,0.18537168,104370.0,104360.0,0.00448456]
[1737674792503,0.28118368,104370.0,104360.0,0.00448456]
[1737674792753,0.18537168,104370.0,104360.0,0.00448456]
[1737674793239,0.01529904,104370.0,104360.0,0.10030656]
[1737674793471,0.01529904,104370.0,104360.0,0.18283462]
[1737674793710,0.01529904,104370.0,104360.0,0.25913462]
[1737674793961,0.01529904,104370.0,104360.0,0.18283462]
[1737674794167,0.01529904,104370.0,104360.0,0.08701262]
[1737674794376,0.01529904,104370.0,104360.0,0.18283462]
[1737674795527,0.20845833,104370.0,104360.0,0.00448456]
[1737674795722,0.11264633,104370.0,104360.0,0.00448456]
[1737674796502,0.20845833,104370.0,104360.0,0.00448456]
[1737674796700,0.11264633,104370.0,104360.0,0.00448456]
[1737674797675,0.11264633,104370.0,104360.0,0.10030656]
[1737674798081,0.11264633,104370.0,104360.0,0.07547552]
[1737674800415,0.11264633,104370.0,104360.0,0.00448456]
[1737674800630,0.18984633,104370.0,104360.0,0.00448456]
[1737674800834,0.39110552,104370.0,104360.0,0.00448456]
[1737674802385,0.54635271,104370.0,104360.0,0.00448456]
[1737674802809,0.44090552,104370.0,104360.0,0.00448456]
[1737674804100,0.61935271,104370.0,104360.0,0.00448456]
[1737674804305,0.7167,104370.0,104360.0,0.00448456]
[1737674804508,0.61935271,104370.0,104360.0,0.0001424]
[1737674804722,0.61935271,104370.0,104360.0,0.00453432]
[1737674805174,0.63840949,104370.0,104360.0,0.00453432]
[1737674807459,0.58840949,104370.0,104360.0,0.00453432]
[1737674807661,0.63840949,104370.0,104360.0,0.00453432]
[1737674808605,0.4599623,104370.0,104360.0,0.00453432]
[1737674808822,0.4101623,104370.0,104360.0,0.00453432]
[1737674809035,0.20845833,104370.0,104360.0,0.00453432]
[1737674809242,0.11264633,104370.0,104360.0,0.00453432]
[1737674809418,0.20845833,104370.0,104360.0,0.00453432]
[1737674810207,0.11264633,104370.0,104360.0,0.00453432]
[1737674810387,0.20845833,104370.0,104360.0,0.00453432]
[1737674810582,0.11264633,104370.0,104360.0,0.00453432]
[1737674810810,0.11264633,104370.0,104360.0,0.25035632]
[1737674811017,0.20845833,104370.0,104360.0,0.21790045]
[1737674811218,0.31390552,104370.0,104360.0,0.21790045]
[1737674811573,0.11264633,104370.0,104360.0,0.21790045]
[1737674812136,0.20845833,104370.0,104360.0,0.21790045]
[1737674812963,0.11264633,104370.0,104360.0,0.21790045]
[1737674813753,0.20845833,104370.0,104360.0,0.21790045]
[1737674813965,0.11264633,104370.0,104360.0,0.21790045]
[1737674814156,0.31390552,104370.0,104360.0,0.21790045]
[1737674818067,0.20845833,104370.0,104360.0,0.21790045]
[1737674818723,0.11264633,104370.0,104360.0,0.21790045]
[1737674818968,0.20845833,104370.0,104360.0,0.21790045]
[1737674819210,0.11264633,104370.0,104360.0,0.21790045]
[1737674819415,0.20845833,104370.0,104360.0,0.21790045]
[1737674819827,0.11264633,104370.0,104360.0,0.21790045]
[1737674820902,0.20845833,104370.0,104360.0,0.21790045]
[1737674821613,0.20845833,104370.0,104360.0,0.15453432]
[1737674821868,0.31390552,104370.0,104360.0,0.15453432]
[1737674823225,0.52215271,104370.0,104360.0,0.15453432]
[1737674823744,0.41670552,104370.0,104360.0,0.15453432]
[1737674824210,0.39370552,104370.0,104360.0,0.15453432]
[1737674824449,0.39370552,104370.0,104360.0,0.16998775]
[1737674828064,0.20845833,104370.0,104360.0,0.16998775]
[1737674828338,0.31390552,104370.0,104360.0,0.15453432]
[1737674828580,0.56785271,104370.0,104360.0,0.00453432]
[1737674828801,0.61505271,104370.0,104360.0,0.00453432]
[1737674829038,0.61505271,104370.0,104360.0,0.0001424]
[1737674829483,0.61505271,104370.0,104360.0,0.0044895]
[1737674829686,0.7124,104370.0,104360.0,0.0001424]
[1737674829920,0.7124,104370.0,104360.0,0.0044895]
[1737674830186,0.61505271,104370.0,104360.0,0.00045319]
[1737674830425,0.61505271,104370.0,104360.0,0.0044895]
[1737674830626,0.61505271,104370.0,104360.0,0.00045319]
[1737674830845,0.61505271,104370.0,104360.0,0.0044895]
[1737674831087,0.61505271,104370.0,104360.0,0.00045319]
[1737674831290,0.61505271,104370.0,104360.0,0.0044895]
[1737674831518,0.61505271,104370.0,104360.0,0.00045319]
[1737674831740,0.61505271,104370.0,104360.0,0.0044895]
[1737674832262,0.50960552,104370.0,104360.0,0.0044895]
[1737674832520,0.45960552,104370.0,104360.0,0.0044895]
[1737674832738,0.50960552,104370.0,104360.0,0.00481927]
[1737674833174,0.45960552,104370.0,104360.0,0.00481927]
[1737674833426,0.50960552,104370.0,104360.0,0.00481927]
[1737674833863,0.45960552,104370.0,104360.0,0.00481927]
[1737674834106,0.50960552,104370.0,104360.0,0.00481927]
[1737674834316,0.45960552,104370.0,104360.0,0.00481927]
[1737674834548,0.50960552,104370.0,104360.0,0.00481927]
[1737674834963,0.45960552,104370.0,104360.0,0.00481927]
[1737674836794,0.50960552,104370.0,104360.0,0.00481927]
[1737674836993,0.45960552,104370.0,104360.0,0.00481927]
[1737674839194,0.50960552,104370.0,104360.0,0.00481927]
[1737674839585,0.50846209,104370.0,104360.0,0.00481927]
[1737674839778,0.50805352,104370.0,104360.0,0.00481927]
[1737674841192,0.50835256,104370.0,104360.0,0.00481927]
[1737674842476,0.61379975,104370.0,104360.0,0.00481927]
[1737674842678,0.68114704,104370.0,104360.0,0.00481927]
[1737674842886,0.58379975,104370.0,104360.0,0.00481927]
[1737674843101,0.58379975,104370.0,104360.0,0.00045319]
[1737674843309,0.58379975,104370.0,104360.0,0.00484034]
[1737674843504,0.58379975,104370.0,104360.0,0.00078571]
[1737674843911,0.57605271,104370.0,104360.0,0.00078571]
[1737674844429,0.57905271,104370.0,104360.0,0.00078571]
[1737674844869,0.58705271,104370.0,104360.0,0.00078571]
[1737674845417,0.57905271,104370.0,104360.0,0.00078571]
[1737674845588,0.58705271,104370.0,104360.0,0.00078571]
[1737674849830,0.6720639,104370.0,104360.0,0.00078571]
[1737674852078,0.6520639,104370.0,104360.0,0.00078571]
[1737674852290,0.8720639,104370.0,104360.0,0.00078571]
[1737674852993,0.9529639,104370.0,104360.0,0.00078571]
[1737674853237,0.8720639,104370.0,104360.0,0.00078571]
[1737674853488,0.8520639,104370.0,104360.0,0.00078571]
[1737674853948,0.8720639,104370.0,104360.0,0.00078571]
[1737674854846,0.8520639,104370.0,104360.0,0.00078571]
[1737674855108,0.8720639,104370.0,104360.0,0.00078571]
[1737674855676,0.8720639,104370.0,104360.0,0.00484034]
[1737674855901,0.8720639,104370.0,104360.0,0.00078571]
[1737674856098,0.8720639,104370.0,104360.0,0.0048051]
[1737674856297,0.8720639,104370.0,104360.0,0.00078571]
[1737674856501,0.6720639,104370.0,104360.0,0.0048051]
[1737674856673,0.6520639,104370.0,104360.0,0.00078571]
[1737674856901,0.6520639,104370.0,104360.0,0.0048051]
[1737674857096,0.6520639,104370.0,104360.0,0.00078571]
[1737674857299,0.6520639,104370.0,104360.0,0.0048051]
[1737674857476,0.6520639,104370.0,104360.0,0.00078571]
[1737674857684,0.6520639,104370.0,104360.0,0.00480679]
[1737674857906,0.6520639,104370.0,104360.0,0.00078571]
[1737674858767,0.6520639,104370.0,104360.0,0.00480679]
[1737674859421,0.8520639,104370.0,104360.0,0.00480679]
[1737674860821,0.8720639,104370.0,104360.0,0.00480679]
[1737674861026,0.8520639,104370.0,104360.0,0.00480679]
[1737674861210,0.76705271,104370.0,104360.0,0.00480679]
[1737674861413,0.56705271,104370.0,104360.0,0.00480679]
[1737674862482,0.76705271,104370.0,104360.0,0.00480679]
[1737674865467,0.56705271,104370.0,104360.0,0.00480679]
[1737674867426,0.76705271,104370.0,104360.0,0.00480679]
[1737674868233,0.78705271,104370.0,104360.0,0.00480679]
[1737674868450,0.40091671,104370.0,104360.0,0.08430679]
[1737674868693,0.40091671,104370.0,104360.0,0.08838387]